Date,Supplier,Brief Description and Quantity,Cost Centre,A/C,Merchant Category,� Gross Amount,VAT Not Recovered,Dept
03/04/2014,UK Insight,Startech USB to RS X 22,M318,203,Other IT Hardware,225.33,,IMD
03/04/2014,Amazon,usb 1.8mtr cable x 3,M318,203,Other IT Hardware,14.19,2.36,IMD
04/04/2014,Amazon,Book - Risk appettite,MU75,260,Insurance (Service Related),16.04,,Audit
04/04/2014,Homebase,drill,LP90,500,Equipment Purchases,119.68,,One Leisure Huntingdon
04/04/2014,Amazon,High speed 7 port usb 2.0 x 10,M318,203,Other IT Hardware,59.89,,IMD
04/04/2014,UK Insight,Startech USB to RS X 18,M318,203,Other IT Hardware,174.38,,IMD
05/04/2014,Facebook,Facebook Advertising,LP40,255,Advertising/Promoting Services,16.80,,One Leisure St Ives
07/04/2014,Argos,Canon IXUS Black Camera,MU27,203,Other IT Hardware,59.99,10.00,IMD
08/04/2014,TRAVELODGE,8.4.14- 14.4.14,HH03,818,Bed & Breakfast ,379.00,,Housing
08/04/2014,TRAVELODGE,8.4.14- 14.4.14,HH03,818,Bed & Breakfast ,31.15,,Housing
08/04/2014,Liverpool Dir SIA,SIA Licence for CCTV Operator,MU98,730,Licences,220.00,,Operations
08/04/2014,Liverpool Dir SIA,SIA Licence for CCTV Operator,MU98,730,Licences,220.00,,Operations
08/04/2014,Liverpool Dir SIA,SIA Licence for CCTV Operator,MU98,730,Licences,220.00,,Operations
08/04/2014,Liverpool Dir SIA,SIA Licence for CCTV Operator,MU98,730,Licences,220.00,,Operations
08/04/2014,Liverpool Dir SIA,SIA Licence for CCTV Operator,MU98,730,Licences,220.00,,Operations
08/04/2014,Kenable,75 X Display port plug to DVI,M318,203,Other IT Hardware,463.79,,IMD
09/04/2014,CHILD POVERTY,WELFARE BEN & TAX CREDIT BOOK,MU35,250,Books & Publications,49.99,,Housing
09/04/2014,DVLA,Tax disc ,EG06,609,Vehicle Licence,227.50,,Operations
09/04/2014,entertainment base,repair to i-pod,LP01,511,Equipment Maintenance,44.99,,One Leisure Huntingdon
09/04/2014,Ebuyer,12 x Trust Exis Webcam,M318,203,Other IT Hardware,95.91,,IMD
10/04/2014,Facebook,Facebook Advertising,LP40,255,Advertising/Promoting Services,16.80,,One Leisure St Ives
10/04/2014,Amazon,Webcam 17003 x 8,M318,203,Other IT Hardware,81.24,,IMD
11/04/2014,Macdonalds,Lunch,MU80,149,Other Staff Expenses,3.59,,Cust Serv (Fraud)
11/04/2014,Kenable,10 x IEC plug C14 to cloverleaf,M318,203,Other IT Hardware,14.51,,IMD
11/04/2014,Nisbets,Kitchen Equipment,LQ27,500,Equipment Purchases,225.56,,One Leisure St Ives
13/04/2014,Facebook,Facebook Advertising,LP40,255,Advertising/Promoting Services,33.01,,One Leisure St Ives
13/04/2014,Apple,Protective case for ipad,M302,205,Network Hardware,39.95,,IMD
14/04/2014,Concept2,Rower Maintenance Kits,LN02,511,Equipment Maintenance,169.50,,One Leisure St Ives
14/04/2014,Apple,iPad air wi-fi 16GB,M302,205,Network Hardware,399.00,,IMD
15/04/2014,TRAVELODGE,15.4.14- 21.4.14,HH03,818,Bed & Breakfast ,405.00,,Housing
15/04/2014,TRAVELODGE,15.4.14- 21.4.14,HH03,818,Bed & Breakfast ,31.15,,Housing
15/04/2014,Impressions,Tenpin Bowling Trophies,LQ15,570,Materials for Resale,439.92,,One Leisure St Ives
15/04/2014,Facebook,Facebook Advertising,LP40,255,Advertising/Promoting Services,16.49,,One Leisure St Ives
15/04/2014,lifesavers direct,torpedo buoys,LP01,500,Equipment Purchases,307.50,,One Leisure Huntingdon
16/04/2014,Premier Inn,Accomodation for training,HB82,137,Conferences,50.00,,Cust Serv (Fraud)
16/04/2014,Premier Inn,Accomodation for training,HB82,137,Conferences,210.00,,Cust Serv (Fraud)
16/04/2014,Premier Inn,Accomodation for training,HB82,137,Conferences,464.00,,Cust Serv (Fraud)
16/04/2014,Aqua Koi,Goldfish 12L fish tank bowl,LD20,500,Equipment Purchases,21.90,3.65,Operations
16/04/2014,Argos,cleaning equipment,LP90,500,Equipment Purchases,182.46,,One Leisure Huntingdon
16/04/2014,HDC,Licence for Craft Fair,LQ20,730,Licences,21.00,,One Leisure St Ives
17/04/2014,Facebook,Facebook Advertising,LP40,255,Advertising/Promoting Services,16.41,,One Leisure St Ives
17/04/2014,Argos,micowave,LP90,500,Equipment Purchases,47.49,,One Leisure Huntingdon
19/04/2014,Facebook,Facebook Advertising,LP40,255,Advertising/Promoting Services,16.47,,One Leisure St Ives
21/04/2014,Facebook,Facebook Advertising,LP40,255,Advertising/Promoting Services,16.08,,One Leisure St Ives
22/04/2014,Tarpaflex Ltd,Tarpaulin,LF41,500,Equipment Purchases,84.31,,Operations
22/04/2014,Ese Direct,Flammable liquid storage cabinet,LF41,500,Equipment Purchases,181.56,30.26,Operations
22/04/2014,Premier Netting,Knitted Windbreak netting,LF41,500,Equipment Purchases,76.58,12.76,Operations
23/04/2014,TRAVELODGE,23.4.14- 28.04.14,HH03,818,Bed & Breakfast ,322.00,,Housing
23/04/2014,WHSmith,CDR Discs,LQ90,225,Stationery,15.00,,One Leisure St Ives
24/04/2014,TRAVELODGE,23.4.14- 28.04.14,HH03,818,Bed & Breakfast ,26.70,,Housing
24/04/2014,TRAVELODGE,22.4.14,HH03,818,Bed & Breakfast ,57.00,,Housing
24/04/2014,TRAVELODGE,22.4.14,HH03,818,Bed & Breakfast ,4.95,,Housing
24/04/2014,Cambs County Council,MBD Certs from Registry Office,MU80,723,Enquiries,30.00,,Cust Serv (Fraud)
24/04/2014,Clubking,Bingo Stock,LQ20,550,Materials,56.14,,One Leisure St Ives
25/04/2014,LeisureTeq,Pool Filter Materials,LQ01,443,Cleaning Materials,163.20,,One Leisure St Ives
25/04/2014,Post Office,2nd Class Stamps,LQ90,231,Postage,46.00,,One Leisure St Ives
25/04/2014,Post Office,2nd Class Stamps,LN90,231,Postage,46.00,,One Leisure St Ives
25/04/2014,Post Office,2nd Class Stamps,LS90,231,Postage,45.80,,One Leisure St Ives
25/04/2014,Neopost,Top up postage on franking machine,LP90,231,Postage,103.00,,One Leisure Huntingdon
27/04/2014,"LCC, The Lodge",Hotel - 2 rooms,MU78,140,Subsistence,148.00,24.67,IMD
28/04/2014,Facebook,Facebook Advertising,LP40,255,Advertising/Promoting Services,4.97,,One Leisure St Ives
29/04/2014,TRAVELODGE,29.04.14 - 05.05.14,HH03,818,Bed & Breakfast ,405.00,,Housing
29/04/2014,TRAVELODGE,29.04.14 - 05.05.14,HH03,818,Bed & Breakfast ,31.15,,Housing
29/04/2014,Cambs County Council,MBD Certs from Registry Office (refund),MU80,723,Enquiries,-10.00,,Cust Serv (Fraud)
29/04/2014,Co-op,Team meeting food,MR10,209,Catering,21.60,,Cust Services
30/04/2014,IQL,assessment forms NPLQ,LP01,130,Training Professional,229.00,,One Leisure Huntingdon
30/04/2014,Metal Mesh,grills for poolside,LP91,304,General Building Maint (planned),296.40,,One Leisure Huntingdon
30/04/2014,BLU,hdchosting.net,MU84,748,Registration Fee,79.64,,IMD
30/04/2014,Amazon,Dymo Tape 12mm,MD09,225,Stationery,20.00,3.33,IMD
30/04/2014,Facebook,Advert,LQ40,255,Advertising/Promoting Services,9.19,,One Leisure St Ives
02/05/2014,Amazon,2 Blackberry Curve mains chargers,MD09,242,Telephone Equipment,5.58,0.93,IMD
02/05/2014,HMCS,Court costs for 2 committal warrants,FC05,729,Legal Fees and Consultancy,490.00,,Local Taxation
03/05/2014,PREMIER INN,06.5.14 - 12.05.14,H3317,818,Bed & Breakfast ,410.00,,Housing
03/05/2014,PREMIER INN,06.5.14 - 12.05.14,H3317,818,Bed & Breakfast ,31.15,,Housing
06/05/2014,Hemming Group,Conference,MU98,137,Conferences,214.80,,Operations
07/05/2014,Post Office,Postage,LQ90,231,Postage,23.40,,One Leisure St Ives
07/05/2014,Post Office,Postage,LQ90,231,Postage,49.86,,One Leisure St Ives
07/05/2014,Post Office,Postage,LQ90,231,Postage,15.21,,One Leisure St Ives
08/05/2014,Shutterstock,Photo Image Credits,LL03,255,Advertising/Promoting Services,29.00,,One Leisure St Ives
09/05/2014,Premier Inn,Accom 2 staff 23.6.2014 to 27.6.2014,HB82,137,Conferences,490.00,,Cust Serv (Fraud)
12/05/2014,MCC,Birth Cert from Manchetsrr City Council,MU80,723,Enquiries,10.00,,Cust Serv (Fraud)
12/05/2014,Swimming org,Level 1 & 2 Swimming course,LP01,130,Training - Professional,500.00,,One Leisure Huntingdon
12/05/2014,Skiddle,Event Advertising,LQ40,255,Advertising/Promoting Services,43.19,,One Leisure St Ives
12/05/2014,HMCS,CTAX Liability Summonses,FD05,729,Legal Fees and Consultancy,624.00,,Local Taxation
12/05/2014,HMCS,NNDR Liability Summonses,FD05,729,Legal Fees and Consultancy,66.00,,Local Taxation
13/05/2014,PREMIER INN,13.5.14 - 19.05.14,H3317,818,Bed & Breakfast ,436.00,,Housing
13/05/2014,PREMIER INN,13.5.14 - 19.05.14,H3317,818,Bed & Breakfast ,31.15,,Housing
13/05/2014,Happy Computers ,Conference place,MR10,137,Conferences,234.00,,Cust Services
13/05/2014,prestige washrooms,new straps for baby changing units,LP91,511,Equipment Maintenance,58.46,9.74,One Leisure Huntingdon
14/05/2014,DVLA,Vehicle Tax,EG06,609,Vehicle Licence,227.50,,Operations
14/05/2014,DVLA,Vehicle Tax,EG06,609,Vehicle Licence,227.50,,Operations
14/05/2014,DVLA,Vehicle Tax,EG06,609,Vehicle Licence,227.50,,Operations
14/05/2014,DVLA,Vehicle Tax,MU98,609,Vehicle Licence,142.50,,Operations
14/05/2014,First Capital Connect,Train ticket to London for conference,MR10,636,Travel Expenses,48.00,,Cust Services
15/05/2014,McDonalds,Breakfast,MU80,149,Other Staff Expenses,3.59,0.60,Cust Serv (Fraud)
15/05/2014,Facebook,Facebook Advertising,LL03,255,Advertising/Promoting Services,16.50,,One Leisure St Ives
15/05/2014,Facebook,Event Advertising,LQ40,255,Advertising/Promoting Services,31.03,,One Leisure St Ives
15/05/2014,DVLA,Vehicle Tax,EG06,609,Vehicle Licence,227.50,,Operations
15/05/2014,DVLA,Vehicle Tax,ES01,609,Vehicle Licence,227.50,,Operations
15/05/2014,DVLA,Vehicle Tax,EG06,609,Vehicle Licence,227.50,,Operations
15/05/2014,DVLA,Vehicle Tax,ES01,609,Vehicle Licence,227.50,,Operations
19/05/2014,AlIbris books,Delivering audit reports that matter,MU75,250,Books & Publications,7.67,,Audit
19/05/2014,Facebook,Facebook Advertising,LL03,255,Advertising/Promoting Services,16.00,,One Leisure St Ives
19/05/2014,Amazon,Cleaning materials,LQ20,443,Cleaning Materials,13.79,,One Leisure St Ives
20/05/2014,IIA,Quality assurance manual (books),MU75,250,Books & Publications,152.56,,Audit
20/05/2014,PREMIER INN,20.05.14 - 26.05.14,H3317,818,Bed & Breakfast ,430.00,,Housing
20/05/2014,PREMIER INN,20.05.14 - 26.05.14,H3317,818,Bed & Breakfast ,31.15,,Housing
20/05/2014,McDonalds,Breakfast,MU80,149,Other Staff Expenses,3.59,0.60,Cust Serv (Fraud)
20/05/2014,Parcel Yark KX,Dinner,MU80,149,Other Staff Expenses,2.50,0.42,Cust Serv (Fraud)
20/05/2014,Co-op,Food for team meeting,MR10,209,Catering,21.90,,Cust Services
21/05/2014,Colemans ,Stationery for office,MU80,209,Stationery,7.99,,Cust Serv (Fraud)
21/05/2014,Facebook,Facebook Advertising,LL03,255,Advertising/Promoting Services,20.00,,One Leisure St Ives
21/05/2014,ESPO,Stationery,MU98,225,Stationery,20.93,,Operations
21/05/2014,Post Office,SIA Licence for CCTV staff,KC01,730,Licences,220.00,,Operations
21/05/2014,DRI www.element5,Professionl edition 1 year,MD09,206,Software,115.55,,IMD
24/05/2014,Facebook,Facebook Advertising,LL03,255,Advertising/Promoting Services,16.08,,One Leisure St Ives
27/05/2014,Facebook,Facebook Advertising,LL03,255,Advertising/Promoting Services,17.92,,One Leisure St Ives
27/05/2014,BMT:Techhit.com,EZDetach 6.0,M318,206,Software,57.66,,IMD
27/05/2014,Amazon,2 USB mini hub ports,MD09,203,Other IT Hardware,20.97,,IMD
30/05/2014,PREMIER INN,20.5.14-26.5.14 REFUND,H3317,818,Bed & Breakfast ,-48.00,,Housing
30/05/2014,PREMIER INN,20.5.14-26.5.14 REFUND,H3317,818,Bed & Breakfast ,-4.45,,Housing
30/05/2014,Amazon,12 USB mini hub ports,M318,203,Other IT Hardware,71.88,,IMD
31/05/2014,Facebook,Facebook Advertising,LL03,255,Advertising/Promoting Services,24.59,,One Leisure St Ives
02/06/2014,Dotmailer,Dotmailer,LL03,255,Advertising/Promoting Services,118.80,,One Leisure St Ives
02/06/2014,Dotmailer,Dotmailer,LL03,255,Advertising/Promoting Services,118.80,,One Leisure St Ives
02/06/2014,Facebook,Facebook Advertising,LL03,255,Advertising/Promoting Services,24.00,,One Leisure St Ives
02/06/2014,Facebook,Event Advertising,LQ40,255,Advertising/Promoting Services,18.15,,One Leisure St Ives
03/06/2014,TSO,New copies of PACE CoP,MU80,209,Other Office Equipment,20.99,,Cust Serv (Fraud)
03/06/2014,THYSSEN KRUPP MATERIALS,ALUMINUM 5 Bar Tread Plate,LP91,304,General Building Maintenance Planned,201.60,,One Leisure Huntingdon
04/06/2014,Facebook,Facebook Advertising,LL03,255,Advertising/Promoting Services,24.00,,One Leisure St Ives
04/06/2014,NCP Prebook,Car Park,MU84,149,Other Staff expenses,6.64,1.11,IMD
05/06/2014,Guided Busway,Bus ticket,MU75,636,Travel Expenses,2.70,,Audit
05/06/2014,Facebook,Facebook Advertising,LL03,255,Advertising/Promoting Services,15.28,,One Leisure St Ives
06/06/2014,Facebook,Facebook Advertising,LL03,255,Advertising/Promoting Services,20.63,,One Leisure St Ives
06/06/2014,Amazon,Apple ipad air leather case,M318,203,Other IT Hardware,10.98,,IMD
06/06/2014,HMCS,Committal Applications,FC05,729,Legal Fees and Consultancy,735.00,,Local Taxation
08/06/2014,Facebook,Facebook Advertising,LL03,255,Advertising/Promoting Services,15.77,,One Leisure St Ives
08/06/2014,Phoenix Hair and Beauty,Tanning Products for Pure,LP15,550,Materials,182.68,,One Leisure Huntingdon
09/06/2014,Provision,Software - Sitekiosk upgrades,M138,206,Software,231.01,,Audit
09/06/2014,My Fonts,Fonts,LL03,255,Advertising/Promoting Services,40.79,,One Leisure St Ives
09/06/2014,HMCS,Council Tax Magistrates Summonses,FC05,729,Legal Fees and Consultancy,"3,513.00",,Local Taxation
09/06/2014,HMCS,NNDR summonses,FD05,729,Legal Fees and Consultancy,279.00,,Local Taxation
09/06/2014,HMCS,CTAX summonses,FC05,729,Legal Fees and Consultancy,"3,510.00",,Local Taxation
09/06/2014,DVLA,Vehicle Tax,ER01,607,Vehicle Licence,652.50,,Operations
09/06/2014,DVLA,Vehicle Tax,ER01,607,Vehicle Licence,652.50,,Operations
09/06/2014,DVLA,Vehicle Tax,ES01,607,Vehicle Licence,227.50,,Operations
09/06/2014,DVLA,Vehicle Tax,ES01,607,Vehicle Licence,227.50,,Operations
09/06/2014,DVLA,Vehicle Tax,ES01,607,Vehicle Licence,227.50,,Operations
09/06/2014,DVLA,Vehicle Tax,ER01,607,Vehicle Licence,652.50,,Operations
09/06/2014,DVLA,Vehicle Tax,ER01,607,Vehicle Licence,652.50,,Operations
09/06/2014,DVLA,Vehicle Tax,EQ02,607,Vehicle Licence,652.50,,Operations
09/06/2014,DVLA,Vehicle Tax,ER01,607,Vehicle Licence,227.50,,Operations
10/06/2014,ESPO,Stationery,MU98,225,Stationery,2.42,,Operations
11/06/2014,Amazon,Lenovo 10.1 inch tablet,DF01,203,Other IT Hardware,177.94,,IMD
12/06/2014,Swimming org,Level 1 & 2 Swimming course refund,LP01,130,Training - Professional,-500.00,,One Leisure Huntingdon
12/06/2014,Symantec,Secure site certificate - remote,M318,206,Software,259.00,,IMD
13/06/2014,Northgate,Van Hire,LQ40,220,Vehicle Hire,244.75,,One Leisure St Ives
13/06/2014,Facebook,Promoted post - online newsletter,MR10,209,Advertising/Promoting Services,15.67,,Cust Services
13/06/2014,Aqua Koi (Amazon),Ocean Free PT068 Fish Tank Bowl,LD20,550,Equipment Purchases,21.90,3.65,Operations
13/06/2014,1 & 1 Internet,huntingdonshire4business.org,QA03,748,Registration Fee,11.99,,IMD
15/06/2014,Facebook,Facebook Advertising,LL03,255,Advertising/Promoting Services,15.00,,One Leisure St Ives
16/06/2014,Half Moon Restaurant,2 Lunches- Mildenhall ,MU80,149,Other Staff Expenses,16.96,2.83,Cust Serv (Fraud)
16/06/2014,BII,BIIAB Personal Licence Holders Hand book,LQ90,250,Books and Publications,61.50,,One Leisure St Ives
17/06/2014,Laerdal,Battery for Heartstart,LD90,550,Equipment Purchases,153.90,25.65,Operations
18/06/2014,Amazon,The 'Stranger's long neck' book,MU84,250,Books and Publications,10.13,,IMD
18/06/2014,Crazy Egg.com,"Yearly subscription 25,000 visits pm",MU84,748,Registration Fee,138.64,,IMD
19/06/2014,McDonalds,2 Breakfasts - London,MU80,149,Other Staff Expenses,7.18,,Cust Serv (Fraud)
19/06/2014,FCCN,Train tickets for London,MU80,149,Other Staff Expenses,48.00,,Cust Serv (Fraud)
19/06/2014,Amazon,Content Strategy for the Web' book,MU84,250,Books and Publications,14.25,,IMD
21/06/2014,Facebook,Facebook Advertising,LL03,255,Advertising/Promoting Services,4.55,,One Leisure St Ives
23/06/2014,Northgate,Van Hire Deposit,LQ40,220,Vehicle Hire,250.00,,One Leisure St Ives
23/06/2014,Amazon,Street Atlas,KC01,250,Books and Publications,53.44,,Operations
24/06/2014,Shell,Petrol,LP40,220,Petrol,85.00,,One Leisure St Ives
24/06/2014,Screw Fix,Screw's,LQ06,304,General Building Maintenance Planned,58.11,9.68,One Leisure St Ives
25/06/2014,Travelodge,Weeks accommodation,LP01,140,Subsistence,251.50,,One Leisure Huntingdon
25/06/2014,Swimming .org,Swimming Teachers course ,LP01,130,Training - Professional,395.00,,One Leisure Huntingdon
26/06/2014,192.COM,192 Membership ,MU80,723,Enquiries,17.99,,Cust Serv (Fraud)
26/06/2014,Shell,Petrol,LN40,220,Petrol,83.73,,One Leisure St Ives
27/06/2014,McDonalds,1 breakfast London,MU80,149,Other Staff Expenses,3.59,,Cust Serv (Fraud)
27/06/2014,Malthurst,Petrol,LR40,220,Petrol,36.58,,One Leisure St Ives
27/06/2014,Northgate,Van Hire Deposit Refund,LQ40,220,Vehicle Hire,-250.00,,One Leisure St Ives
27/06/2014,Tesco ,Food,LQ29,559,Catering,26.72,,One Leisure St Ives
29/06/2014,Crazy Egg.com,"Yearly subscription 10,000 visits pm",MU84,748,Registration Fee,54.52,,IMD
01/07/2014,192.COM,192 Usage charge,MU80,723,Enquiries,35.94,,Cust Serv (Fraud)
01/07/2014,192.COM,192 Usage charge,MU80,723,Enquiries,54.00,,Cust Serv (Fraud)
01/07/2014,Co-op,Food,LQ29,559,Catering,3.19,,One Leisure St Ives
02/07/2014,Concept2,Rower Parts,LQ02,511,Equipment Maintenance,59.50,,One Leisure St Ives
02/07/2014,Facebook,Event Marketing,LQ40,255,Advertising/Promoting Services,45.30,,One Leisure St Ives
03/07/2014,First Capital Connect,Train ticket for course ,MR10,636,Travel Expenses,53.60,,Cust Services
04/07/2014,Facebook,Facebook Advertising,LL03,255,Advertising/Promoting Services,15.66,,One Leisure St Ives
05/07/2014,Facebook,Facebook Advertising,LL03,255,Advertising/Promoting Services,19.79,,One Leisure St Ives
07/07/2014,Facebook,Facebook Advertising,LL03,255,Advertising/Promoting Services,17.78,,One Leisure St Ives
07/07/2014,HMCS,Council Tax Committal Application,FC05,729,Legal Fees and Consultancy,245.00,,Local Taxation
08/07/2014,QVS Electrical,Cable Ties,LQ40,255,Advertising/Promoting Services,16.20,,One Leisure St Ives
08/07/2014,HMCS,NNDR Liability Summonses,FD05,729,Legal Fees and Consultancy,90.00,,Local Taxation
09/07/2014,Facebook,Facebook Advertising,LL03,255,Advertising/Promoting Services,16.00,,One Leisure St Ives
09/07/2014,JMJC Ltd,"Leather seat, footstool and side table",MH04,153,Long Service Awards,454.00,,Local Taxation
09/07/2014,Amazon - E W Link,Canon Camera,MU27,203,Other IT Hardware,73.98,,IMD
09/07/2014,DVLA,Vehicle Tax,ER01,607,Vehicle Licence,652.50,,Operations
09/07/2014,DVLA,Vehicle Tax,ER01,607,Vehicle Licence,227.50,,Operations
09/07/2014,DVLA,Vehicle Tax,ER01,607,Vehicle Licence,227.50,,Operations
09/07/2014,DVLA,Vehicle Tax,ER01,607,Vehicle Licence,227.50,,Operations
09/07/2014,ASDA,Uniforms,MU69,163,Protective Clothing and Uniforms,74.95,,Customer Services
10/07/2014,Tesco,Food provisions,LQ29,559,Catering,34.28,,One Leisure St Ives
11/07/2014,PayAsUGym,PayAsUGym credit,LL03,255,Advertising/Promoting Services,5.00,,One Leisure St Ives
11/07/2014,Facebook,Facebook Advertising,LL03,255,Advertising/Promoting Services,16.00,,One Leisure St Ives
13/07/2014,Facebook,Facebook Advertising,LL03,255,Advertising/Promoting Services,16.00,,One Leisure St Ives
15/07/2014,Facebook,Facebook Advertising,LL03,255,Advertising/Promoting Services,16.00,,One Leisure St Ives
16/07/2014,Barcode Warehouse,Quad dock ethernet,TC90,500,Equipment Purchases,389.26,,IMD
16/07/2014,1 & 1 Ltd,cambstenancyfraud.net,HB82,748,Registration Fee,11.99,,IMD
17/07/2014,Skiddle,Event Promotion,LQ40,255,Advertising/Promoting Services,47.99,,One Leisure St Ives
17/07/2014,Facebook,Facebook Advertising,LL03,255,Advertising/Promoting Services,16.00,,One Leisure St Ives
18/07/2014,Workwearexpre,Uniform,LQ20,163,Protective Clothing and Uniforms,288.58,,One Leisure St Ives
19/07/2014,Facebook,Facebook Advertising,LL03,255,Advertising/Promoting Services,16.00,,One Leisure St Ives
21/07/2014,Facebook,Facebook Advertising,LL03,255,Advertising/Promoting Services,16.00,,One Leisure St Ives
21/07/2014,fridgeland,bottle fridge,LP32,500,Equipment Purchases,101.99,,One Leisure Huntingdon
21/07/2014,toys r us,nerf guns,LP10,524,Sports Equipment,149.80,,One Leisure Huntingdon
21/07/2014,DVLA,Vehicle Tax,EQ02,607,Vehicle Licence,652.50,,Operations
22/07/2014,ESPO,Various,LE01,500,Equipment Purchases,151.31,,Operations
22/07/2014,ASDA,Uniforms,MU69,163,Protective Clothing and Uniforms,48.50,,Customer Services
24/07/2014,WCPC Oxford,Lunch in Oxford,MU80,149,Other Staff Expenses,5.85,,Cust Serv (Fraud)
24/07/2014,Facebook,Facebook Advertising,LL03,255,Advertising/Promoting Services,16.00,,One Leisure St Ives
24/07/2014,Facebook,Facebook Advertising,LL03,255,Advertising/Promoting Services,22.78,,One Leisure St Ives
24/07/2014,tesco direct,cds for birthday parties,LP10,524,Sports Equipment,34.00,,One Leisure Huntingdon
24/07/2014,Umbraco,Training,MU84,136,Training Other,19.42,,IMD
25/07/2014,Registrar,Marriage cert for fraud investigation ,MU80,723,Enquiries,7.00,,Cust Serv (Fraud)
25/07/2014,Facebook,Facebook Advertising,LL03,255,Advertising/Promoting Services,17.22,,One Leisure St Ives
25/07/2014,party delights,junior activities ,LP12,524,Sports Equipment,83.06,,One Leisure Huntingdon
27/07/2014,sports direct,junior roller skates,LP10,524,Sports Equipment,361.60,60.27,One Leisure Huntingdon
27/07/2014,Tesco,Food provisions,LQ29,559,Catering,29.97,,One Leisure St Ives
29/07/2014,York Publishing,Managing Visitor Safety book,LV06,250,Books and Publications,17.75,,Operations
29/07/2014,Crazy egg,Refund for subscription,MU84,748,Registration Fee,-54.51,,IMD
30/07/2014,Skiddle,Advertising,LQ40,255,Advertising/Promoting Services,28.79,,One Leisure St Ives
30/07/2014,O2 MBB,Top Up for Dongle,CJ10,255,Advertising/Promoting Services,10.00,1.67,IMD
31/07/2014,Facebook,Advertising,LQ40,255,Advertising/Promoting Services,20.15,,One Leisure St Ives
01/08/2014,Facebook,Facebook Advertising,LP40,255,Advertising/Promoting Services,6.00,,One Leisure St Ives
01/08/2014,ESPO,Stationery,MU98,225,Stationery,82.40,,Operations
01/08/2014,Mark Harrod LTD,football goal straps,LQ06,500,Equipment Purchases,76.65,,One Leisure St Ives
04/08/2014,Dotmailer,Email software,LP02,255,Advertising/Promoting Services,118.80,,One Leisure St Ives
04/08/2014,Dotmailer,Email software,LP02,255,Advertising/Promoting Services,161.09,,One Leisure St Ives
04/08/2014,Envato,Image/photo credits,LP40,255,Advertising/Promoting Services,24.49,,One Leisure St Ives
04/08/2014,Content Insight,"10,000 pages",MU84,206,Software,30.01,,IMD
05/08/2014,TRAVELODGE,05.08.14 - 08.08.14,HH03,818,Bed & Breakfast ,247.50,,Housing
05/08/2014,TRAVELODGE,0% VAT,HH03,818,Bed & Breakfast ,35.60,,Housing
05/08/2014,Tesco,Food,LQ29,559,Catering,34.10,,One Leisure St Ives
06/08/2014,IOSH,National Safety Conference 08/09/14,MU98,133,Training - Health & Safety,108.00,,Operations
06/08/2014,ESPO,Stationery,MU98,225,Stationery,67.20,,Operations
06/08/2014,ESPO,Stationery,MU98,225,Stationery,1.44,,Operations
07/08/2014,TRAVELODGE,09.08.14 - 15.08.14,HH03,818,Bed & Breakfast ,442.80,,Housing
07/08/2014,TRAVELODGE,07.08.14 - 14.08.14,HH03,818,Bed & Breakfast ,372.50,,Housing
07/08/2014,TRAVELODGE,0% VAT,HH03,818,Bed & Breakfast ,62.30,,Housing
07/08/2014,Facebook,Facebook Advertising,LP40,255,Advertising/Promoting Services,36.00,,One Leisure St Ives
07/08/2014,Baker Ross,Gold Winning Medals,LD90,225,Stationery,53.63,,Operations
08/08/2014,TRAVELODGE,EARLY DEPARTURE,HH03,818,Bed & Breakfast ,-191.20,,Housing
08/08/2014,TRAVELODGE,EARLY DEPARTURE,HH03,818,Bed & Breakfast ,-191.20,,Housing
08/08/2014,Minilabel,Caf� Promo Labels,LQ40,255,Advertising/Promoting Services,101.36,,One Leisure St Ives
08/08/2014,TLC Southern,Fan,LQ02,303,General Building Maintenance,99.59,16.60,One Leisure St Ives
08/08/2014,Nochex,Fan,LQ15,303,General Building Maintenance,78.96,,One Leisure St Ives
08/08/2014,DVLA,Vehicle Tax,ES01,609,Vehicle Licence,227.50,,Operations
08/08/2014,DVLA,Vehicle Tax,MF10,609,Vehicle Licence,227.50,,Operations
08/08/2014,MSFT Online,Share Point Online 4 licences,MD09,206,Software,96.00,,IMD
08/08/2014,MSFT Online,Exchange Online 60 licences,MD09,206,Software,"1,872.00",,IMD
09/08/2014,Facebook,Facebook Advertising,LP40,255,Advertising/Promoting Services,18.00,,One Leisure St Ives
11/08/2014,1 & 1 Ltd,burgesshall.net 10.08.14-10.08.15,LQ40,255,Advertising/Promoting Services,11.99,,IMD
11/08/2014,1 & 1 Ltd,cambridgeshiretenancyfraud.net,HB82,748,Registration Fee,11.99,,IMD
11/08/2014,HMCS,NNDR summonses,FD05,729,Legal Fees and Consultancy,78.00,,Local Taxation
11/08/2014,HMCS,CTAX summonses,FC05,729,Legal Fees and Consultancy,"1,302.00",,Local Taxation
11/08/2014,HMCS,CTAX summonses,FC05,729,Legal Fees and Consultancy,"1,302.00",,Local Taxation
12/08/2014,GP Print,Personal Trainer Cards,LP40,255,Advertising/Promoting Services,63.60,,One Leisure St Ives
12/08/2014,Pingdom,Pingdom pro license,MU84,206,Software,294.58,,IMD
12/08/2014,Amazon,Refund,MU75,203,Other IT Hardware,-14.49,,IMD
13/08/2014,TRAVELODGE,EARLY DEPART,HH03,818,Bed & Breakfast ,-378.40,,Housing
15/08/2014,Cambs County,Birth cert from Registrars Office,MU59,723,Enquiries,10.00,,Cust Serv (Fraud)
15/08/2014,Solopress,Burgess Hall Cards,LQ40,255,Advertising/Promoting Services,69.60,,One Leisure St Ives
15/08/2014,Facebook,Facebook Advertising,LP40,255,Advertising/Promoting Services,19.21,,One Leisure St Ives
15/08/2014,iStock,360 photo credits,MP01,555,Software,385.75,,IMD
17/08/2014,Facebook,Facebook Advertising,LP40,255,Advertising/Promoting Services,23.00,,One Leisure St Ives
18/08/2014,Trainline,Rail tkt - P/b to York (01/10/2014),MU75,636,Travel Expenses,31.11,,Audit
18/08/2014,aspect pools,pool hoover head,LP01,500,Equipment Purchases,32.99,,One Leisure Huntingdon
18/08/2014,Amazon,Pool Hook,LQ01,500,Equipment Purchases,12.99,2.16,One Leisure St Ives
19/08/2014,Nochex,Fan,LQ15,303,General Building Maintenance,-78.96,,One Leisure St Ives
19/08/2014,Amazon,Security tags,LQ91,500,Equipment Purchases,5.49,0.91,One Leisure St Ives
21/08/2014,HMCS,BID summonses,FD05,729,Legal Fees and Consultancy,6.00,,Local Taxation
22/08/2014,Google,Google Adwords,LP40,255,Advertising/Promoting Services,0.47,,One Leisure St Ives
22/08/2014,Toolstation,General Maintaince items,LQ20,303,General Building Maintenance,19.22,,One Leisure St Ives
24/08/2014,Facebook,Facebook Advertising,LP40,255,Advertising/Promoting Services,11.19,,One Leisure St Ives
26/08/2014,HMCS,CTAX committal costs,FC05,729,Legal Fees and Consultancy,245.00,,Local Taxation
27/08/2014,Toolstation,General Maintaince items,LQ20,303,General Building Maintenance,12.48,,One Leisure St Ives
28/08/2014,PREMIER INN,28.08.14 - 03.09.14,HH03,818,Bed & Breakfast ,563.75,,Housing
28/08/2014,GP Print,Personal Trainer Cards,LP40,255,Advertising/Promoting Services,13.20,,One Leisure St Ives
28/08/2014,Argos,clothes airer,LP36,500,Equipment Purchases,17.54,2.92,One Leisure Huntingdon
28/08/2014,Next Directory,One pair of trousers for staff uniform,MU69,163,Protective Clothing and Uniforms,12.00,,Customer Services
28/08/2014,Wilko Retail Limit,Garden Tools,MD09,511,Equipment Maintenance,6.75,,IMD
29/08/2014,Parcelforce,Parcel postage,MP01,231,Postage,412.26,,Operations
29/08/2014,Environment Agency,Hazardous Waste Registration,ER01,763,Waste Disposal,144.00,,Operations
29/08/2014,Next,Uniform,MU69,163,Protective Clothing and Uniforms,82.00,,Customer Services
29/08/2014,Next,Uniform - Postage,MU69,163,Protective Clothing and Uniforms,3.99,,Customer Services
30/08/2014,Facebook,Facebook Advertising,LP40,255,Advertising/Promoting Services,9.01,,One Leisure St Ives
30/08/2014,Amazon,4 Self laminating Luggage Tags,MD09,203,Other IT Hardware,4.36,,IMD
01/09/2014,Stanford Marsh,Paper for OCE Printer for Planning ,MZ07,225,Stationery,173.09,,Audit
01/09/2014,Facebook,Event Marketing,LQ40,255,Advertising/Promoting Services,19.20,,One Leisure St Ives
01/09/2014,Marisota,Uniform,MU69,163,Protective Clothing and Uniforms,153.90,,Customer Services
01/09/2014,Modern Tribe Plug Ins,Community Events Calendar,QA03,206,Software,40.41,,IMD
01/09/2014,Usability Dynamics,WP Front End Property Submissions,QA03,206,Software,77.92,,IMD
03/09/2014,GP Print,PT Cards,LP40,255,Advertising/Promoting Services,14.40,,One Leisure St Ives
03/09/2014,QVS Electrical,Cable Ties for Banners,LP40,255,Advertising/Promoting Services,15.00,,One Leisure St Ives
03/09/2014,Tesco,Food,LQ29,559,Catering,17.20,,One Leisure St Ives
05/09/2014,Amari Plastics,Plastic wall cladding,LP01,304,General Building Maint (planned),116.21,,One Leisure Huntingdon
05/09/2014,Pets at home,Airline tubing for pure essence,LP15,304,General Building Maint (planned),13.50,,One Leisure Huntingdon
05/09/2014,Marisota,Return on illfitting uniform for staff,MU69,163,Protective Clothing and Uniforms,-24.30,,Customer Services
05/09/2014,Marisota,Return on illfitting uniform for staff,MU69,163,Protective Clothing and Uniforms,-24.30,,Customer Services
06/09/2014,Facebook,Facebook Advertising,LP40,255,Advertising/Promoting Services,22.75,,One Leisure St Ives
08/09/2014,TRAVELODGE,9.09.14 - 12.09.14,HH03,818,Bed & Breakfast ,257.50,,Housing
08/09/2014,TRAVELODGE,Breakfast 9/9/14 - 12/9/14,HH03,818,Bed & Breakfast ,17.80,,Housing
08/09/2014,Amazon,Kettlebells (St Ives),LQ10,524,Sports Equipment,99.95,,One Leisure St Ives
08/09/2014,Amazon,SD cards for refuse vehicle CCTV,ER01,500,Equipment Purchases,30.08,,Operations
09/09/2014,HMCS,NNDR Liability Summonses,FD05,729,Legal Fees and Consultancy,84.00,,Local Taxation
10/09/2014,Hotel Chocolate,Gifts for 5 speakers at CGP training day,MU75,136,Training - other,59.40,,Audit
10/09/2014,Sainsbury's ,Snacks for CGP training day,MU75,136,Training - other,10.00,,Audit
10/09/2014,ESPO,Stationery,MU98,225,Stationery,47.70,,Operations
11/09/2014,The cutting room,doors for gemini,LP91,304,General Building Maint (planned),500.00,,One Leisure Huntingdon
11/09/2014,The cutting room,doors for gemini,LP91,304,General Building Maint (planned),418.24,,One Leisure Huntingdon
12/09/2014,ARGOS,Long service award - retirement gift,MH04,153,Long service awards,453.99,,Audit
12/09/2014,Best Western,1 night at Donnington Manor Hotel,MD09,136,Training - Other,69.30,,IMD
13/09/2014,Facebook,Facebook Advertising,LP40,255,Advertising/Promoting Services,12.00,,One Leisure St Ives
15/09/2014,Facebook,Facebook Advertising,LP40,255,Advertising/Promoting Services,21.87,,One Leisure St Ives
15/09/2014,DVLA,Vehicle Tax,ES01,609,Vehicle Licence,142.50,,Operations
16/09/2014,Sainsburys,Sweets for training course,MR10,209,Catering,8.80,,Cust Services
16/09/2014,IRRV,Student membership fee,MU81,136,Training - other,63.67,,Local Taxation
16/09/2014,IRRV,Student membership fee ,MU81,136,Training - other,63.67,,Local Taxation
16/09/2014,IRRV,Student membership fee,MU81,136,Training - other,63.67,,Local Taxation
17/09/2014,wickes,Toilet seats,LP91,304,General Building Maint (planned),26.97,,One Leisure Huntingdon
17/09/2014,Amazon,Glitter curtains for cabaret,LQ21,550,Materials,7.44,1.24,One Leisure St Ives
18/09/2014,Skiddle.com,Event promotion,LQ40,255,Advertising/Promoting Services,28.79,,One Leisure St Ives
18/09/2014,CIEH,Event Safety Training Course,DK05,131,Training - Operational,270.00,,Community Services
19/09/2014,Facebook,Facebook Advertising,LP40,255,Advertising/Promoting Services,20.86,,One Leisure St Ives
19/09/2014,Provisio,Update Site Kiosk Version 8 - 37851181,M318,206,Software,112.19,,IMD
19/09/2014,Provisio,Update Site Kiosk Version 8 - 37851181,M318,206,Software,112.19,,IMD
20/09/2014,Facebook,Facebook Advertising,LP40,255,Advertising/Promoting Services,16.23,,One Leisure St Ives
22/09/2014,Facebook,Facebook Advertising,LP40,255,Advertising/Promoting Services,55.06,,One Leisure St Ives
22/09/2014,Amazon,Projector slide controller,LQ20,500,Equipment Purchases,10.00,1.67,One Leisure St Ives
22/09/2014,Clubking,Bingo Books,LQ20,550,Equipment Purchases,105.12,,One Leisure St Ives
23/09/2014,Facebook,Facebook Advertising,LP40,255,Advertising/Promoting Services,30.16,,One Leisure St Ives
23/09/2014,poundland,padlocks,LP91,304,General Building Maint (planned),15.00,,One Leisure Huntingdon
24/09/2014,Tenancy Fraud Forum,Tickets for National Conference,MU59,130,Training - Professional,99.00,,Cust Serv (Fraud)
24/09/2014,Facebook,Facebook Advertising,LP40,255,Advertising/Promoting Services,30.49,,One Leisure St Ives
24/09/2014,Tescos,Team meeting food,MR10,209,Catering,10.27,,Cust Services
24/09/2014,Tescos,Team meeting food,MR10,209,Catering,1.15,,Cust Services
24/09/2014,IRRV,1 Day Professional Conference Pass,MU81,136,Training - other,210.00,,Local Taxation
25/09/2014,GNR,Railway ticket for 30.9.2014,MU59,149,Other Staff Expenses,32.90,,Cust Serv (Fraud)
25/09/2014,Facebook,Facebook Advertising,LP40,255,Advertising/Promoting Services,41.82,,One Leisure St Ives
25/09/2014,Thycotic Software,Secret Server Express Edition,MD09,206,Software,6.32,,IMD
26/09/2014,Facebook,Facebook Advertising,LP40,255,Advertising/Promoting Services,26.59,,One Leisure St Ives
28/09/2014,Facebook,Facebook Advertising,LP40,255,Advertising/Promoting Services,15.77,,One Leisure St Ives
30/09/2014,Tesco,Tesco Food,LQ29,559,Catering,26.98,,One Leisure St Ives
30/09/2014,Amazon.co.uk,1x Mini Stapler and 2 x Dymo D1 Tape,MU71,225,Stationery,22.75,,IMD
01/10/2014,CIEH,East Midlands Regional Conference,CH26,137,Conferences,49.00,,Community Services
02/10/2014,Facebook,Facebook Advertising,LP40,255,Advertising/Promoting Services,18.20,,One Leisure St Ives
02/10/2014,LQM,CIEH SGV / C4SL Guidance,DA03,250,Books & Publications,160.00,,Community Services
02/10/2014,LQM,CIEH SGV / C4SL Guidance Shipping,DA03,250,Books & Publications,7.80,,Community Services
03/10/2014,Facebook,Facebook Advertising,LN40,255,Advertising/Promoting Services,24.23,,One Leisure St Ives
03/10/2014,Powerstar UK,Ankle Weights SALT,LB41,500,Equipment Purchases,125.00,,One Leisure St Ives
03/10/2014,Staples,DYMO tickets,LQ40,255,Advertising/Promoting Services,116.06,,One Leisure St Ives
03/10/2014,Wilko Retail Ltd,2 packs laminating pouches ,MU69,225,Stationery,8.00,,Customer Services
05/10/2014,Spar,Mens Health Magazine,LL03,255,Advertising/Promoting Services,3.99,,One Leisure St Ives
05/10/2014,Facebook,Facebook Advertising,LN40,255,Advertising/Promoting Services,20.14,,One Leisure St Ives
06/10/2014,CPAG,BENEFITS FOR MIGRANTS BOOK 14/15,MU35,250,Books & Publications,28.99,,Housing
06/10/2014,BPA,Annual Conference ,MU98,137,Conferences,306.00,,Operations
06/10/2014,HMCS,Council Tax Summonses,FC05,729,Legal Fees and Consultancy,"3,309.00",,Local Taxation
06/10/2014,HMCS,NNDR Summonses,FD05,729,Legal Fees and Consultancy,48.00,,Local Taxation
07/10/2014,Welcome Break,IRRV Conference Accommodation,MU81,136,Training - other,139.90,,Local Taxation
08/10/2014,Facebook,Facebook Advertising,LN40,255,Advertising/Promoting Services,17.15,,One Leisure St Ives
08/10/2014,Co-op,Sweets for customer service week,MR10,209,Catering,20.00,,Cust Services
08/10/2014,Commerical Wash,Toilet Door Locks,LQ91,303,General Building Maintenance,30.36,,One Leisure St Ives
08/10/2014,Karden Water,Spa,LQ15,303,General Building Maintenance,33.34,,One Leisure St Ives
09/10/2014,Social report.com,tool for measuring social media,MR10,209,Catering,5.78,,Cust Services
09/10/2014,DVLA,Vehicle tax,MU95,609,Vehicle Licence,227.50,,Operations
09/10/2014,DVLA,Vehicle tax,MU98,609,Vehicle Licence,227.50,,Operations
09/10/2014,DVLA,Vehicle tax,ER01,609,Vehicle Licence,167.50,,Operations
11/10/2014,Facebook,Facebook Advertising,LN40,255,Advertising/Promoting Services,17.14,,One Leisure St Ives
13/10/2014,Amazon,Replacement Batteries for Radio,LQ21,303,General Building Maintenance,30.32,,One Leisure St Ives
13/10/2014,Powerhouse Fitness,Kettlebells,LQ10,524,Sports Equipment,25.97,,One Leisure St Ives
13/10/2014,New Wave Brands,Kettlebells,LQ10,524,Sports Equipment,77.94,,One Leisure St Ives
13/10/2014,New Wave Brands,Kettlebells,LQ10,524,Sports Equipment,3.99,,One Leisure St Ives
14/10/2014,Facebook,Facebook Advertising,LN40,255,Advertising/Promoting Services,21.40,,One Leisure St Ives
14/10/2014,Swim Org,Diving Course,LP01,130,Training Professional,220.00,,One Leisure Huntingdon
15/10/2014,EC mainline Co,Tickets to KX 15-16.10.2014,MU59,149,Other Staff Expenses,52.40,,Cust Serv (Fraud)
15/10/2014,Dotmailer,Dotmailer Software,LN40,255,Advertising/Promoting Services,118.80,,One Leisure St Ives
15/10/2014,Dotmailer,Dotmailer Software,LN40,255,Advertising/Promoting Services,118.80,,One Leisure St Ives
15/10/2014,Facebook,Facebook Advertising,LN40,255,Advertising/Promoting Services,27.57,,One Leisure St Ives
15/10/2014,HMCS,Committal Warrants,FC05,729,Legal Fees and Consultancy,735.00,,Local Taxation
16/10/2014,London Underground,Undergroudn 15-16.10.2014,MU59,149,Other Staff Expenses,17.80,,Cust Serv (Fraud)
16/10/2014,Facebook,Facebook Advertising,LN40,255,Advertising/Promoting Services,18.23,,One Leisure St Ives
16/10/2014,Co-op,Food for team meeting,MR10,209,Catering,11.25,,Cust Services
16/10/2014,Travelodge,Room booking - 11th Dec,MU95,131,Training - Operational,36.50,,Operations
16/10/2014,DVLA,Vehicle tax,ER01,609,Vehicle Licence,652.50,,Operations
16/10/2014,DVLA,Vehicle tax,ER01,609,Vehicle Licence,652.50,,Operations
16/10/2014,DVLA,Vehicle tax,EQ02,609,Vehicle Licence,652.50,,Operations
16/10/2014,DVLA,Vehicle tax,EQ02,609,Vehicle Licence,652.50,,Operations
16/10/2014,DVLA,Vehicle tax,EG06,609,Vehicle Licence,227.50,,Operations
16/10/2014,DVLA,Vehicle tax,MU95,609,Vehicle Licence,227.50,,Operations
16/10/2014,CIEH,Licensing Conference,GM90,131,Training - Operational,298.00,,Community Services
17/10/2014,Amazon,Replacement Batteries for Radio,LQ21,303,General Building Maintenance,45.48,,One Leisure St Ives
18/10/2014,Facebook,Facebook Advertising,LN40,255,Advertising/Promoting Services,25.58,,One Leisure St Ives
19/10/2014,Facebook,Facebook Advertising,LN40,255,Advertising/Promoting Services,18.25,,One Leisure St Ives
20/10/2014,Poundland ,Christmas Table Decs,LQ20,550,Materials,10.00,,One Leisure St Ives
20/10/2014,Poundland ,Christmas Table Decs,LQ20,550,Materials,108.00,,One Leisure St Ives
20/10/2014,The Works,Santa's Grotto Presents,LQ20,550,Materials,20.00,,One Leisure St Ives
20/10/2014,Asda Direct ,2 cardigans - uniform,MU69,163,Protective Clothing and Uniforms,24.00,,Customer Services
20/10/2014,Asda Direct ,2 cardigans - uniform delivery charge,MU69,163,Protective Clothing and Uniforms,2.95,,Customer Services
20/10/2014,M&S e commerce,3 pack of shirts and 1 v neck jumper,MU69,163,Protective Clothing and Uniforms,53.00,,Customer Services
21/10/2014,Facebook,Facebook Advertising,LN40,255,Advertising/Promoting Services,25.49,,One Leisure St Ives
21/10/2014,WP Hemming Group Ltd,MJ Subscription,CH26,755,Professional Subscriptions,140.00,,Community Services
22/10/2014,Amazon,Wireless Pen Syle 2.4GHz,MD09,203,Other IT Hardware,24.00,,IMD
22/10/2014,Amazon,Wireless Pen Syle 2.4GHz carriage,MD09,203,Other IT Hardware,3.99,,IMD
23/10/2014,CIEH,Planning & EP Training ,DA03,131,Training - Operational,170.00,,Community Services
24/10/2014,Facebook,Facebook Advertising,LN40,255,Advertising/Promoting Services,17.58,,One Leisure St Ives
24/10/2014,Poundland ,Christmas Table Decs,LQ20,550,Materials,25.00,,One Leisure St Ives
24/10/2014,Posturite,Penguin Mouse,CH02,203,Other IT Hardware,83.94,,Corporate Office
27/10/2014,Wrights Plastics,Slatwall Point of Sale Holders,LN40,255,Advertising/Promoting Services,35.75,,One Leisure St Ives
27/10/2014,Facebook,Facebook Advertising,LN40,255,Advertising/Promoting Services,17.50,,One Leisure St Ives
27/10/2014,Commerical Wash,Spa,LQ91,303,General Building Maintenance,158.88,,One Leisure St Ives
27/10/2014,GitHub,Software Subscription,MU84,206,Software,16.02,,IMD
27/10/2014,The Law Society,Subscription,MU61,755,Professional Subscriptions,352.00,,Corporate Office
28/10/2014,John Lewis,Beats Headphones (Promotion Prize),LL03,255,Advertising/Promoting Services,169.95,,One Leisure St Ives
28/10/2014,Poundworld,Christmas Table Decs,LQ20,550,Materials,42.00,,One Leisure St Ives
28/10/2014,Burton Retail,2 pairs of trousers,MU69,163,Protective Clothing and Uniforms,35.00,,Customer Services
29/10/2014,PLOT IT,PAPER & INK,MZ02,208,Printers,472.81,,Planning
30/10/2014,Worksmart,Digital Training course,MR10,136,Training - Other,125.00,,Cust Services
30/10/2014,M&S e commerce,1 cardigan and 4 shirts,MU69,163,Protective Clothing and Uniforms,68.00,,Customer Services
31/10/2014,Tesco Store 2065,5 Thermos mugs,MU69,163,Protective Clothing and Uniforms,24.00,,Customer Services
01/11/2014,Microsoft,Pay as you Go Azure monthly,MU84,206,Software,119.47,,IMD
02/11/2014,Facebook,Facebook Advertising,LN40,255,Advertising/Promoting Services,31.68,,One Leisure St Ives
03/11/2014,Facebook,Event Advertising,LQ40,255,Advertising/Promoting Services,16.14,,One Leisure St Ives
03/11/2014,NEXT DIREXCTORY,UNIFORM PURCHASE,MU69,163,Protective Clothing and Uniforms,55.99,,Customer Services
03/11/2014,NEXT DIREXCTORY,UNIFORM PURCHASE,MU69,163,Protective Clothing and Uniforms,26,,Customer Services
03/11/2014,M&S COMMERCE,UNIFORM PURCHASE,MU69,163,Protective Clothing and Uniforms,192.00,,Customer Services
03/11/2014,TESCO STORES,TEAM THERMOS MUGS,MU69,163,Protective Clothing and Uniforms,48.00,,Customer Services
03/11/2014,TESCO STORES,TEAM THERMOS MUGS,MU69,163,Protective Clothing and Uniforms,24.00,,Customer Services
03/11/2014,SPORTSDIRECT.COM,UNIFORM PURCHASE,MU69,163,Protective Clothing and Uniforms,12.98,,Customer Services
03/11/2014,NEXT DIREXCTORY,UNIFORM PURCHASE,MU69,163,Protective Clothing and Uniforms,35.00,,Customer Services
03/11/2014,NEXT DIREXCTORY,UNIFORM PURCHASE - REFUND,MU69,163,Protective Clothing and Uniforms,-22.01,,Customer Services
04/11/2014,Facebook,Facebook Advertising,LL03,255,Advertising/Promoting Services,29.34,,One Leisure St Ives
04/11/2014,B&M,Christmas Party presents,LQ20,550,Materials,84.19,,One Leisure St Ives
04/11/2014,DVLA,Vehicle Tax,ER01,609,Vehicle Licence,142.50,,Operations
05/11/2014,Inst of Env Sciences,Diffusion Modelling User Group,DA02,131,Training - Operational,70.00,,Community Services
05/11/2014,Argos,HP Wireless Mouse,MU05,203,Other IT Hardware,24.99,,IMD
06/11/2014,Cambs County,Birth Certificate,MU59,723,Enquiries,10.00,,Cust Serv (Fraud)
06/11/2014,Facebook,Facebook Advertising,LL03,255,Advertising/Promoting Services,29.80,,One Leisure St Ives
06/11/2014,LeanKit,Leankit Licences x 11,MD09,206,Software,"1,625.53",,IMD
06/11/2014,pmgltd,Developing Commercial Awareness Training,CH26,131,Training - Operational,474.00,,Community Services
07/11/2014,COMP HSE,Company report frm Companies House,FD05,729,Legal Fees and Consultancy,5.00,,Local Taxation
07/11/2014,YOURSCLOTHING,UNIFORM PURCHASE,MU69,163,Protective Clothing and Uniforms,57.99,,Customer Services
07/11/2014,ST Ives Golf Club,Tileiest Golf Clubs,MH04,153,Long Service Awards,460.00,,Corporate Office
08/11/2014,Facebook,Facebook Advertising,LL03,255,Advertising/Promoting Services,26.42,,One Leisure St Ives
09/11/2014,Social Report,social media reporting,MR10,209,Catering,5.87,,Cust Services
10/11/2014,Tastes of Torrisholme,Delivery,LD20,550,Equipment Purchases,3.95,,Operations
10/11/2014,Tesco,Christmas Party presents,LQ20,550,Materials,34.50,,One Leisure St Ives
10/11/2014,Tesco,Christmas Party presents,LQ20,550,Materials,2.00,,One Leisure St Ives
10/11/2014,Amazon,Skipping Ropes,LQ10,524,Sports Equipment,27.90,,One Leisure St Ives
11/11/2014,HDC,Burlesque Licence,LQ20,730,Licences,21.00,,One Leisure St Ives
11/11/2014,Uniquely Crackers,Christmas Party Crackers,LQ20,550,Materials,229.84,,One Leisure St Ives
11/11/2014,HMCS,NNDR Liability Summonses,FD05,729,Legal Fees and Consultancy,81.00,,Local Taxation
11/11/2014,COOP,Food,LQ29,559,Catering,5.17,,One Leisure St Ives
11/11/2014,WESTEND DIY,LOCK FOR YASXLEY OFFICE,KA09,225,Stationery,4.49,0.75,Customer Services
11/11/2014,Enterprise Partnership,Training ,QA03,137,Conferences,27.15,,Planning
11/11/2014,Enterprise Partnership,Training ,QA03,137,Conferences,27.15,,Planning
11/11/2014,Westminster Employment Fo,Training ,QA03,137,Conferences,252,,Planning
12/11/2014,ESPO,Cleaning,LV06,443,Cleaning Materials,82.17,,Operations
12/11/2014,Partyramma,Christmas Party goods,LQ20,550,Materials,29.78,,One Leisure St Ives
12/11/2014,Dennis Publishing,PC Pro Magazine Subscription,MU84,250,Books & Publications,49.99,,IMD
13/11/2014,Team South West Ltd,Headband Fleeces (for SALT Health Walks),LB31,255,Advertising/Promoting Services,51.59,8.60,One Leisure St Ives
13/11/2014,SIA,CCTV Staff - Licence,KC80,730,Licences,220.00,,Operations
13/11/2014,neopost,credit of franking machines,LP90,231,Postage,103.00,,One Leisure Huntingdon
13/11/2014,Sports Direct,Eqipment for fitness classes,LP10,524,Sports Equipment,189.90,,One Leisure Huntingdon
13/11/2014,Amazon,Christmas Party Decorations,LQ20,550,Materials,57.12,,One Leisure St Ives
13/11/2014,Amazon,Christmas Party Decorations,LQ20,550,Materials,5.88,,One Leisure St Ives
13/11/2014,HMCS,Committal Warrant,FC05,729,Legal Fees and Consultancy,245.00,,Local Taxation
13/11/2014,Amazon,Kettlbells (REFUND),LQ10,524,Sports Equipment,-25.97,,One Leisure St Ives
13/11/2014,M&S COMMERCE,UNIFORM PURCHASE - REFUND,MU69,163,Protective Clothing and Uniforms,-64.50,,Customer Services
14/11/2014,Facebook,Facebook Advertising,LL03,255,Advertising/Promoting Services,2.56,,One Leisure St Ives
14/11/2014,One Stop,Marketing of craft fair road sign,LQ20,550,Materials,6.99,,One Leisure St Ives
14/11/2014,Amazon,Christmas Party table confetti,LQ20,550,Materials,17.88,,One Leisure St Ives
14/11/2014,Amazon,Snow for christmas party,LQ20,550,Materials,37.18,,One Leisure St Ives
14/11/2014,Colemans,Stationary,MU71,225,Stationery,11.02,,IMD
14/11/2014,NEXT DIREXCTORY,UNIFORM PURCHASE,MU69,163,Protective Clothing and Uniforms,63.00,,Customer Services
14/11/2014,NEXT DIREXCTORY,UNIFORM PURCHASE,MU69,163,Protective Clothing and Uniforms,3.99,,Customer Services
17/11/2014,Argos,Equipment for parties,LP10,524,Sports Equipment,26.45,,One Leisure Huntingdon
17/11/2014,HDC,Christmas Fair Licence,LQ20,730,Licences,21.00,,One Leisure St Ives
17/11/2014,Colemans,Stationary,MU71,225,Stationery,1.25,,IMD
17/11/2014,Brittney Murphy,Fonts,MP01,550,Materials,7.91,,IMD
17/11/2014,Argos,HP Pavillion Laptop,MH04,153,Long Service Awards,449.99,,Corporate Office
17/11/2014,Argos,HP Pavillion Laptop,MH04,153,Long Service Awards,-22.50,,Corporate Office
19/11/2014,Parcel Force,Collection of Parcels,HB82,231,Postage,48.28,,Operations
20/11/2014,Tastes of Torrisholme,Storage Jars,LD20,550,Equipment Purchases,24.95,,Operations
21/11/2014,Qualsafe,Defibrillator,LD90,451,Health and Saftey,53.16,,Operations
21/11/2014,Qualsafe,Credit Charge,LD90,451,Health and Saftey,1.06,,Operations
24/11/2014,Archersigns,Car Park Sign,LQ21,500,Equipment Purchases,67.74,,One Leisure St Ives
25/11/2014,WWW.POSTURITE.CO.UK,LEG REST AS PER OCC HEALTH REFERRAL,MU69,225,Stationery,155.94,,Customer Services
26/11/2014,Facebook,Facebook Advertising,LL03,255,Advertising/Promoting Services,30.16,,One Leisure St Ives
26/11/2014,Google,Google Adwords,LL03,255,Advertising/Promoting Services,8.87,,One Leisure St Ives
27/11/2014,Camden Lock Hotel,Accomodation,MU59,131,Conferences,99.00,,Cust Serv (Fraud)
27/11/2014,Facebook,Facebook Advertising,LL03,255,Advertising/Promoting Services,53.48,,One Leisure St Ives
27/11/2014,GitHub,Software Subscription,MU84,206,Software,16.36,,IMD
28/11/2014,Facebook,Facebook Advertising,LL03,255,Advertising/Promoting Services,69.31,,One Leisure St Ives
28/11/2014,Facebook,Facebook Advertising,LL03,255,Advertising/Promoting Services,16.56,,One Leisure St Ives
28/11/2014,Zephyr,Flag,MU98,550,Equipment Purchases,46.74,,Operations
28/11/2014,Amazon,Part refund from above purchase,LQ20,550,Materials,-17.49,,One Leisure St Ives
28/11/2014,Amazon,Wireless Mouse,MU84,203,Other IT Hardware,17.87,,IMD
29/11/2014,Facebook,Facebook Advertising,LL03,255,Advertising/Promoting Services,61.18,,One Leisure St Ives
30/11/2014,CAB,ADVISOR MAGAZINE SUBSCRIPTION,MU35,250,Books & Publications,65.00,,Housing
30/11/2014,Facebook,Facebook Advertising,LL03,255,Advertising/Promoting Services,20.34,,One Leisure St Ives
30/11/2014,Tesco,Leisure side Kids party equipment,LQ12,500,Equipment Purchases,63.00,,One Leisure St Ives
30/11/2014,Facebook,Marketing of events,LQ40,255,Advertising/Promoting Services,13.14,,One Leisure St Ives
30/11/2014,Pro Direct Sport,Leisure side Kids party equipment,LQ12,500,Equipment Purchases,86.75,,One Leisure St Ives
30/11/2014,Pro Direct Sport,Leisure side Kids party equipment,LQ12,500,Equipment Purchases,5.95,,One Leisure St Ives
02/12/2014,Microsoft,Pay as yo Go Monthly Azure,MU84,206,Software,152.82,,IMD
03/12/2014,ESPO,Stationery,MU98,225,Stationery,99.66,,Operations
04/12/2014,Clubking Ltd,Bingo Items,LQ20,550,Materials,175.65,,One Leisure St Ives
04/12/2014,DVLA,Vehicle Tax,ER01,609,Vehicle Licence,652.50,,Operations
04/12/2014,DVLA,Vehicle Tax,ES01,609,Vehicle Licence,212.50,,Operations
04/12/2014,DVLA,Vehicle Tax,EQ02,609,Vehicle Licence,167.50,,Operations
04/12/2014,DVLA,Vehicle Tax,EG06,609,Vehicle Licence,227.50,,Operations
04/12/2014,DVLA,Vehicle Tax,EQ02,609,Vehicle Licence,652.50,,Operations
04/12/2014,CIEH,Mobile Home Training ,DS03,131,Training - Operational,175.00,,Community Services
05/12/2014,Facebook,Facebook Advertising,LL03,255,Advertising/Promoting Services,10.88,,One Leisure St Ives
08/12/2014,Social Report,Social media monitoring,MR10,206,Software,5.96,,Cust Services
09/12/2014,TSGN Huntingdon,Train ticket to London for course,MR10,636,Travel Expenses,48.00,,Cust Services
09/12/2014,TSGN Huntingdon,Train ticket to London for course,MU79,636,Travel Expenses,48.00,,Cust Services
09/12/2014,Pro Direct Sport,One Leisure - Kids Party items,LQ10,500,Equipment Purchases,46.75,,One Leisure St Ives
09/12/2014,HMCS,NNDR Liability Summonses,FD05,729,Legal Fees and Consultancy,90.00,,Local Taxation
09/12/2014,Amazon ,Price Book,EG06,550,Materials,135.75,,Operations
10/12/2014,Specsavers,Safety Glasses,EG06,163,Protective Clothing,257.67,,Operations
10/12/2014,eme services,Fitness class equipment - bands,LP10,524,Sports Equipment,63.49,,One Leisure Huntingdon
10/12/2014,homebase,Christmas decorations fo functions,LP30,550,Materials,44.60,,One Leisure Huntingdon
10/12/2014,DVLA,Vehicle Tax,EQ02,609,Vehicle Licence,652.50,,Operations
10/12/2014,DVLA,Vehicle Tax,EQ02,609,Vehicle Licence,652.50,,Operations
10/12/2014,DVLA,Vehicle Tax,EQ02,609,Vehicle Licence,652.50,,Operations
10/12/2014,DVLA,Vehicle Tax,ER01,609,Vehicle Licence,652.50,,Operations
10/12/2014,DVLA,Vehicle Tax,EQ02,609,Vehicle Licence,652.50,,Operations
10/12/2014,DVLA,Vehicle Tax,ER01,609,Vehicle Licence,652.50,,Operations
10/12/2014,DVLA,Vehicle Tax,ES01,609,Vehicle Licence,167.50,,Operations
10/12/2014,DVLA,Vehicle Tax,ES01,609,Vehicle Licence,167.50,,Operations
10/12/2014,Argos,Netgear USB Adapter,MD09,203,Other IT Hardware,26.58,,IMD
11/12/2014,ESPO,Stationery,MU98,225,Stationery,73.87,,Operations
11/12/2014,impressions,T-shirts for fitness class,LP10,524,Sports Equipment,378.00,,One Leisure Huntingdon
11/12/2014,HMCS,Council Tax Summonses,FC05,729,Legal Fees and Consultancy,"2,340.00",,Local Taxation
12/12/2014,Next Directory,Refund,MU69,163,Protective Clothing and Uniforms,-3.99,,Customer Services
15/12/2014,Amazon ,Find your strengths books,MR10,250,Books & Publication,15.38,,Cust Services
15/12/2014,Amazon ,Find your strengths books,MU69,250,Books & Publication,15.38,,Cust Services
15/12/2014,Poundland,Kids Xmas Party Grotto presents,LQ20,550,Materials,62.00,,One Leisure St Ives
15/12/2014,Argos,Netgear USB Adapter,MD09,203,Other IT Hardware,13.29,,IMD
16/12/2014,Facebook,Facebook Advertising,LL03,255,Advertising/Promoting Services,1.14,,One Leisure St Ives
16/12/2014,Argos,Netgear USB Adapter,MD09,203,Other IT Hardware,13.29,,IMD
16/12/2014,Argos,Netgear USB Adapter,MD09,203,Other IT Hardware,13.29,,IMD
16/12/2014,Lenovo,Laptop,M302,201,P C's and accessories,"1,251.29",,IMD
17/12/2014,Poundland,Kids Xmas Party Grotto presents,LQ20,550,Materials,1.00,,One Leisure St Ives
17/12/2014,Poundland,Kids Xmas Party Grotto presents,LQ20,550,Materials,76.00,,One Leisure St Ives
19/12/2014,Argos,TP Link Wireless Mini N3,MD09,203,Other IT Hardware,10.44,,IMD
20/12/2014,Facebook,Facebook Advertising,LL03,255,Advertising/Promoting Services,31.63,,One Leisure St Ives
22/12/2014,Facebook,Facebook Advertising,LL03,255,Advertising/Promoting Services,29.37,,One Leisure St Ives
22/12/2014,1 & 1 Ltd,Refund,HB82,748,Registration Fee,-5.14,,IMD
25/12/2014,Facebook,Facebook Advertising,LL03,255,Advertising/Promoting Services,17.81,,One Leisure St Ives
26/12/2014,Google,Google Adwords,LL03,255,Advertising/Promoting Services,18.97,,One Leisure St Ives
27/12/2014,GitHub,Monthly Subscription Software,MU84,206,Software,16.63,,IMD
30/12/2014,Argos,Mini Exercise Bikes (Active Lifestyles),LB30,500,Equipment Purchases,403.85,,One Leisure St Ives
31/12/2014,Facebook,Facebook Advertising,LL03,255,Advertising/Promoting Services,21.68,,One Leisure St Ives
31/12/2014,Facebook,Facebook Advertising,LL03,255,Advertising/Promoting Services,22.39,,One Leisure St Ives
01/01/2015,ESPO,Stationery,MU98,225,Stationery,88.63,,Operations
01/01/2015,Microsoft,Pay as you go Monthly Azure,MU84,206,Software,110.33,,IMD
02/01/2015,Amazon,SALT Exercise Velcro Straps x 5,LB33,500,Equipment Purchases,30.00,,One Leisure St Ives
02/01/2015,Facebook,Facebook Advertising,LL03,255,Advertising/Promoting Services,23.73,,One Leisure St Ives
02/01/2015,Apple Store,iPhone 5s Silver 16GB,MH04,153,Long Service Awards,469,,Corporate Office
03/01/2015,Facebook,Facebook Advertising,LL03,255,Advertising/Promoting Services,22.51,,One Leisure St Ives
04/01/2015,Facebook,Facebook Advertising,LL03,255,Advertising/Promoting Services,16.49,,One Leisure St Ives
05/01/2015,Facebook,Promoted post - frozen bins,MR10,209,Catering,13.00,,Cust Services
05/01/2015,DVLA,Vehicle Tax,ER01,609,Vehicle Licence,652.50,,Operations
05/01/2015,DVLA,Vehicle Tax,ES01,609,Vehicle Licence,167.50,,Operations
05/01/2015,DVLA,Vehicle Tax,LE01,609,Vehicle Licence,227.50,,Operations
05/01/2015,DVLA,Vehicle Tax,MS01,609,Vehicle Licence,287.50,,Operations
05/01/2015,DVLA,Vehicle Tax,ES01,609,Vehicle Licence,227.50,,Operations
06/01/2015,Facebook,Facebook Advertising,LL03,255,Advertising/Promoting Services,20.00,,One Leisure St Ives
06/01/2015,G I Barnett & Son Ltd,Cambridgeshire atlas,MU98,250,Books and Publications,99.90,,Operations
06/01/2015,DVLA,Vehicle Tax,EG06,609,Vehicle Licence,227.50,,Operations
08/01/2015,Facebook,Facebook Advertising,LL03,255,Advertising/Promoting Services,20.00,,One Leisure St Ives
08/01/2015,Tableau,Tableau Licence,LQ91,730,Licences,547.90,,One Leisure St Ives
08/01/2015,Parcelforce,Postage,MS01,231,Postage,155.34,,Operations
08/01/2015,Tesco,Food,LQ29,559,Long Service Awards,27.70,,One Leisure St Ives
08/01/2015,PLOT IT,PLAN PRINTER PAPER,MZ02,208,Printers,126.05,,Planning
09/01/2015,Social report,Reporting for social media,MR10,206,Software,6.17,,Cust Services
09/01/2015,Lockertek,Wrist straps for locker keys,LQ01,550,Materials,143.64,,One Leisure St Ives
10/01/2015,Facebook,Facebook Advertising,LL03,255,Advertising/Promoting Services,17.26,,One Leisure St Ives
12/01/2015,TRAVELODGE,12.01.15- -19.01.15,MU35,816,Incentive Payment,334.98,,Housing
12/01/2015,TRAVELODGE,12.01.15- -19.01.15,MU35,816,Incentive Payment,35.62,,Housing
12/01/2015,Argos,Steam Mop,LP90,500,Equipment Purchases,59.99,,One Leisure Huntingdon
12/01/2015,HMCS,NNDR Liability Summonses,FD05,729,Legal Fees and Consultancy,81.00,,Local Taxation
12/01/2015,DVLA,Vehicle Tax,EG06,609,Vehicle Licence,227.50,,Operations
13/01/2015,Solopress,Swimming Cards,LL03,255,Advertising/Promoting Services,102.00,,One Leisure St Ives
13/01/2015,Solopress,Fitness Cards,LL03,255,Advertising/Promoting Services,102.00,,One Leisure St Ives
13/01/2015,ESPO,Stationery,MU98,225,Stationery,45.26,,Operations
13/01/2015,Karl Hays,Misc ,MD09,295,Other office expenses,14.32,,IMD
14/01/2015,Sports Direct,SALT Clothing,LB30,163,Protective Clothing,390.83,,One Leisure St Ives
14/01/2015,geezers boxing,digital timer,LP10,524,Sports Equipment,129.50,,One Leisure Huntingdon
14/01/2015,TNT,Postage of Palo Alto Server to Khipu,MD09,231,P C's and accessories,29.58,,IMD
15/01/2015,Amazon,Dymo Tapes,MU71,255,Advertising/promoting ser,18.00,,IMD
19/01/2015,argos,creche television,LP36,500,Equipment Purchases,89.99,,One Leisure Huntingdon
19/01/2015,argos,creche television,LP36,500,Equipment Purchases,-4.50,,One Leisure Huntingdon
20/01/2015,Argos Ltd,5 Fan Heaters,MU69,225,Stationery,47.45,,Customer Services
21/01/2015,GPPrint,PT Cards,LL03,255,Advertising/Promoting Services,13.00,,One Leisure St Ives
21/01/2015,Landmark,Landmark forums course,MR10,136,Training - Other,360.00,,Cust Services
21/01/2015,iql,NPLQ Exam Papers,LP01,730,Licences,191.00,,One Leisure Huntingdon
21/01/2015,CIWM,TEEP Eveent,MU98,131,Training - Operational,48.00,,Operations
21/01/2015,CIWM,TEEP Eveent,MU98,131,Training - Operational,3.33,,Operations
21/01/2015,PayPal,Screening Levels Woorkshop,DA03,131,Training - Operational,180.00,,Community Services
22/01/2015,Fitness Music,SALT CDs,LB41,500,Equipment Purchases,48.73,,One Leisure St Ives
22/01/2015,Tesco Direct,SALT CDs,LB41,500,Equipment Purchases,30.30,,One Leisure St Ives
22/01/2015,Sports Direct,SALT Clothing,LB30,163,Protective Clothing,114.95,,One Leisure St Ives
23/01/2015,Tesco Direct,SALT CDs (refund),LB41,500,Equipment Purchases,-5.00,,One Leisure St Ives
23/01/2015,Tesco Direct,SALT CDs (refund),LB41,500,Equipment Purchases,-7.80,,One Leisure St Ives
23/01/2015,Prospec,Locker key locks,LQ02,550,Materials,133.50,,One Leisure St Ives
23/01/2015,Mini-itx.com,Antenna & Pigtail Mini PCI Wireless Card,MD09,205,Network hardware,20.40,,IMD
27/01/2015,GitHub,Monthly subscription,MU84,206,Software,17.14,,IMD
27/01/2015,BEST WESTERN,ACCOMMODATION,MU17,131,Training - operational,197,,Planning
29/01/2015,HPA,HPA Training,MU05,131,Training - Operational,50.00,,Community Services
29/01/2015,PayPal: ABCFoodSafe,Meat Processing Training,MU05,131,Training - Operational,150.00,,Community Services
29/01/2015,Lenovo,Media Recovery disks,M302,201,P C's and accessories,18.41,,IMD
31/01/2015,Wetsuit Outlet,SALT Canoe Helmets,LB47,524,Sports Equipment,200.00,,One Leisure St Ives
31/01/2015,facebook,Event marketing,LQ40,255,Advertising/Promoting Services,51.26,,One Leisure St Ives
31/01/2015,Microsoft,Pay as you go Monthly Azure,MU84,206,Software,114.01,,IMD
31/01/2015,PayPal: ABCFoodSafe,Meat Processing Training,MU05,131,Training - Operational,150.00,,Community Services
05/02/2015,Sports Direct,SALT Uniform Return Credit,LB30,163,Protective Clothing and Uniforms,-45.98,,One Leisure St Ives
05/02/2015,Enviromesh,Enviromesh Ultra Fine,LF40,500,Equipment Purchases,249.60,,Operations
05/02/2015,Enviromesh,Enviromesh Ultra Fine,LF40,500,Equipment Purchases,2.50,,Operations
05/02/2015,DVLA,Vehicle Tax,LB30,609,Vehicle Licence,227.50,,Operations
08/02/2015,Socialreport,Social media monitoring,MR10,206,Software,6.07,,Cust Services
09/02/2015,ESPO,Stationery,MU98,225,Stationery,26.18,,Operations
09/02/2015,West End,Paint,LQ91,303,General Building Maintenance,50.98,,One Leisure St Ives
09/02/2015,entertainment base,repair to i-pod,LP01,511,Equipment Maintenance,39.99,,One Leisure Huntingdon
10/02/2015,DVLA,Vehicle Tax,EG06,609,Vehicle Licence,227.50,,Operations
10/02/2015,DVLA,Vehicle Tax,EG06,609,Vehicle Licence,227.50,,Operations
10/02/2015,DVLA,Vehicle Tax,ER01,609,Vehicle Licence,652.50,,Operations
10/02/2015,DVLA,Vehicle Tax,EG06,609,Vehicle Licence,227.50,,Operations
10/02/2015,DVLA,Vehicle Tax,ER01,609,Vehicle Licence,652.50,,Operations
10/02/2015,DVLA,Vehicle Tax,ER01,609,Vehicle Licence,652.50,,Operations
10/02/2015,DVLA,Vehicle Tax,ER01,609,Vehicle Licence,652.50,,Operations
10/02/2015,DVLA,Vehicle Tax,LF90,609,Vehicle Licence,227.50,,Operations
11/02/2015,HMCTS,Probate documents,FC05,729,Legal Fees and Consultancy,10.00,,Local Taxation
12/02/2015,Stationery Office ,Good Practice Guide to Event SAG's,GM90,250,Books & Publications,33.60,,Community Services
12/02/2015,1 & 1 Internet Services,Domain name renewals,LP40,255,Advertising/Promoting Services,20.37,,IMD
12/02/2015,Awards Centre,Swimming Gym Cards,LQ90,500,Equipment Purchases,18.00,,One Leisure St Ives
12/02/2015,Awards Centre,Swimming Gym Cards,LQ90,500,Equipment Purchases,3.90,,One Leisure St Ives
13/02/2015,SublimeHQPT,Sublime Text,MU84,206,Software,46.94,,IMD
13/02/2015,TSGN,Travel for course ,MR10,636,Travel Expenses,50.60,,Cust Services
16/02/2015,Amazon,Book - Digitizing Government,MU79,250,Books & Publications,29.99,,Local Taxation
16/02/2015,laerdal,De-fib pads - Huntingdon,LP91,550,Materials,52.36,,One Leisure Huntingdon
16/02/2015,laerdal,De-fib pads - St.Ives,LQ91,550,Materials,52.34,,One Leisure Huntingdon
17/02/2015,TSGN,Travel for course ,MR10,636,Travel Expenses,17.50,,Cust Services
17/02/2015,HMCTS,Council Tax summons costs,FC05,729,Legal Fees and Consultancy,"2,070.00",,Local Taxation
17/02/2015,HMCTS,NNDR Summons costs,FD05,729,Legal Fees and Consultancy,75.00,,Local Taxation
18/02/2015,Google,Search Engine,LN40,255,Advertising/Promoting Services,168.07,,IMD
19/02/2015,Tesco,Team meeting food,MR10,209,Catering,10.40,,Cust Services
20/02/2015,Amazon,Vehicle trackers,ER01,500,Equipment Purchases,509.94,,Operations
24/02/2015,1 & 1 Internet Services,Domain name renewals,LQ40,255,Advertising/Promoting Services,16.76,,IMD
25/02/2015,Amazon,Gym Equipment,LQ02,500,Equipment Purchases,81.94,,One Leisure St Ives
26/02/2015,Amazon,Vehicle trackers,ER01,500,Equipment Purchases,509.94,,Operations
27/02/2015,MacDonald Hotels,2night DBB ,MU78,134,Training - IT,494.00,,IMD
27/02/2015,Github,Subscription monthly,MU84,206,Software,16.73,,IMD
27/02/2015,Argos Ltd,Label machine,MU69,225,Stationery,27.52,,Customer Services
27/02/2015,Facebook,Facebook Advertising,LL03,255,Advertising/Promoting Services,0.66,,One Leisure St Ives
28/02/2015,ESPO,Mail bags,MU98,225,Stationery,78.48,,Operations
28/02/2015,Facebook,Event Advertising,LQ40,255,Advertising/Promoting Services,13.38,,One Leisure St Ives
28/02/2015,Powerhouse,Gym Equipment,LQ02,500,Equipment Purchases,0.04,,One Leisure St Ives
28/02/2015,Powerhouse,Gym Equipment,LQ02,500,Equipment Purchases,103.79,,One Leisure St Ives
28/02/2015,MaxFlags GmbH,Huntingdonshire Flag,CH02,799,Other Services,12.50,,Corporate Office
05/03/2015,Amazon,Rapesco Galvanised staples extra large,MD09,225,Stationery,17.49,,IMD
05/03/2015,Screwfix,Shower Items,LQ01,303,General Building Maintenance,92.32,,One Leisure St Ives
05/03/2015,Polesandtacks,Curtain Poles,LQ21,550,Materials,72.25,,One Leisure St Ives
06/03/2015,Clubking,Bingo Books,LQ20,550,Materials,49.12,,One Leisure St Ives
08/03/2015,Social report,Social media monitoring,MR10,206,Software,6.12,,Cust Services
09/03/2015,Browser Stack,"Solo Annual up to 3 users, 1 session",MU84,206,Software,288.36,,IMD
09/03/2015,Polesandtacks,Curtain Poles,LQ21,550,Materials,11.65,,One Leisure St Ives
09/03/2015,Polesandtacks,Curtain Poles,LQ21,550,Materials,-5.00,,One Leisure St Ives
09/03/2015,TV Licensing,TV licence for Eastfield House,MU98,730,Licences,145.50,,Operations
10/03/2015,Staples,Tickets for printing,LQ40,255,Advertising/Promoting Services,172.70,,One Leisure St Ives
10/03/2015,Facebook,Facebook Advertising,LL03,255,Advertising/Promoting Services,17.13,,One Leisure St Ives
11/03/2015,Umbraco,6001 Umbraco Complete,MU84,206,Software,363.60,,IMD
11/03/2015,Facebook,Facebook Advertising,LL03,255,Advertising/Promoting Services,26.85,,One Leisure St Ives
11/03/2015,TSGN Huntingdon,Train tocket for course,MR10,636,Travel Expenses,49.00,,Cust Services
12/03/2015,Lenovo,Think Pad T450s,MD09,203,Other IT Hardware,"1,302.79",,IMD
12/03/2015,Microsoft,Azure Pay as you Go,MU84,206,Software,127.96,,IMD
12/03/2015,Dennis Publishing,PC Pro Subscription,MD09,250,Books & Publications,49.99,,IMD
12/03/2015,Facebook,Facebook Advertising,LL03,255,Advertising/Promoting Services,26.63,,One Leisure St Ives
12/03/2015,DVLA,Vehicle Tax,DG01,609,Vehicle Licence,227.50,,Operations
12/03/2015,DVLA,Vehicle Tax,TC90,609,Vehicle Licence,227.50,,Operations
12/03/2015,DVLA,Vehicle Tax,TC90,609,Vehicle Licence,227.50,,Operations
12/03/2015,DVLA,Vehicle Tax,TC90,609,Vehicle Licence,227.50,,Operations
12/03/2015,DVLA,Vehicle Tax,EG06,609,Vehicle Licence,227.50,,Operations
12/03/2015,DVLA,Vehicle Tax,EG06,609,Vehicle Licence,227.50,,Operations
12/03/2015,DVLA,Vehicle Tax,ES01,609,Vehicle Licence,212.50,,Operations
12/03/2015,DVLA,Vehicle Tax,ER01,609,Vehicle Licence,652.50,,Operations
12/03/2015,DVLA,Vehicle Tax,ER01,609,Vehicle Licence,652.50,,Operations
13/03/2015,Argos,Shed/Fridge Freezer/Lawn Mower,MH04,153,Long Service Awards,401.21,,Corporate Office
13/03/2015,M&S e commerce,Uniform purchase,MU69,163,Protective Clothing and Uniforms,123.00,,Customer Services
13/03/2015,M&S e commerce,Uniform purchase,MU69,163,Protective Clothing and Uniforms,23.00,,Customer Services
13/03/2015,Next Directory,Uniform purchase,MU69,163,Protective Clothing and Uniforms,46.99,,Customer Services
13/03/2015,Next Directory ,Uniform purchase,MU69,163,Protective Clothing and Uniforms,26.00,,Customer Services
13/03/2015,Next Directory,Refund,MU69,163,Protective Clothing and Uniforms,-35.00,,Customer Services
13/03/2015,Next Directory,Refund,MU69,163,Protective Clothing and Uniforms,-26.00,,Customer Services
13/03/2015,Facebook,Facebook Advertising,LL03,255,Advertising/Promoting Services,19.29,,One Leisure St Ives
16/03/2015,DVLA,Vehicle Tax,ES01,609,Vehicle Licence,227.50,,Operations
17/03/2015,Cleverbridge,Acronis Disk Director 12 Licences,MD09,206,Software,29.13,,IMD
18/03/2015,DVLA,Vehicle Tax,ES01,609,Vehicle Licence,227.50,,Operations
19/03/2015,Sainsbury's,Batteries,MD09,225,Stationery,16.65,,IMD
19/03/2015,DVLA,Vehicle Tax,EG06,609,Vehicle Licence,227.50,,Operations
20/03/2015,Summerfield Books,Tree Book,MU16,131,Training - operational,22.95,,Planning
20/03/2015,Amazon - Science24,Tree Book,MU16,131,Training - operational,42.74,,Planning
20/03/2015,IQL,NPLQ Candidate packs,LP01,730,Licences,430.00,,One Leisure Huntingdon
20/03/2015,mick george,skip hire,LP91,763,Waste Disposal,252.00,,One Leisure Huntingdon
23/03/2015,HMCS,NNDR Liability Summonses,FD05,729,Legal Fees and Consultancy,69.00,,Local Taxation
24/03/2015,Marks and Spencer,Refund,MU69,163,Protective Clothing and Uniforms,-19.50,,Customer Services
24/03/2015,Screwfix,Hose,LQ01,303,General Building Maintenance,59.98,,One Leisure St Ives
24/03/2015,Bakerross,Kids Club Items,LQ12,550,Materials,21.75,,One Leisure St Ives
25/03/2015,Personal Details Redacted,Watch,MH04,153,Long Service Awards,468.00,,Corporate Office
26/03/2015,Skiddle,Event Marketing,LQ40,255,Advertising/Promoting Services,17.99,,One Leisure St Ives
26/03/2015,Toolstation,Wheels for tables,LQ21,550,Materials,195.00,,One Leisure St Ives
27/03/2015,Amazon,Gift Certificate,MH04,153,Long Service Awards,390.00,,Corporate Office
27/03/2015,Microsoft,Visual Studio Prof 2013 x 1,MU84,206,Software,303.00,,IMD
27/03/2015,Git Hub,Monthly subscription,MU84,206,Software,17.40,,IMD
27/03/2015,Amazon,Stereo for Centre Players,LQ21,500,Equipment Purchases,194.97,,One Leisure St Ives
27/03/2015,Amazon,Skipping Ropes for gym,LQ02,500,Equipment Purchases,35.88,,One Leisure St Ives
27/03/2015,Golden Lion,Room for Act (Codebreakers),LQ20,744,Entertainment inc Cable,72.00,,One Leisure St Ives
30/03/2015,Microsoft,Azure Pay as you Go,MU84,206,Software,152.62,,IMD
30/03/2015,GP Print,VAT refund,LL03,255,Advertising/Promoting Services,2.60,,One Leisure St Ives
30/03/2015,Solopress,Table Talkers,LL03,255,Advertising/Promoting Services,61.20,,One Leisure St Ives
30/03/2015,Facebook,Facebook Advertising,LL03,255,Advertising/Promoting Services,23.37,,One Leisure St Ives
30/03/2015,The Battery Shop,NP2 1-12 Yuasa Battery,MD09,511,Equipment Purchases,41.94,,IMD
30/03/2015,Camlock Systems,Keyring Loops,LQ91,550,Materials,36.04,,One Leisure St Ives
